fUSD/lending_fUSD_20240404
["ID","MTS","AMOUNT","RATE_DAILY","PERIOD"]
[321458034,1712200293404,-745.92,0.00055068,120]
[321458035,1712200293414,-519.19,0.00055068,120]
[321458036,1712200293423,-510.35,0.00055068,120]
[321458037,1712200293432,-500.0,0.00055068,120]
[321458038,1712200293442,-500.0,0.00055068,120]
[321458039,1712200293451,-538.5,0.00055068,120]
[321458040,1712200293462,-500.0,0.00055068,120]
[321458041,1712200293473,-1661.46,0.00055068,120]
[321458042,1712200293484,-500.0,0.00055068,120]
[321458043,1712200293494,-500.0,0.00055068,120]
[321458044,1712200293504,-810.25,0.00055068,120]
[321458045,1712200293514,-500.0,0.00055068,120]
[321458046,1712200293525,-432.73229164,0.00055068,7]
[321458047,1712200293535,-500.0,0.00055068,120]
[321458048,1712200293546,-519.32,0.00055068,120]
[321458049,1712200293556,-500.0,0.00055068,120]
[321458050,1712200293649,-856.61,0.00055068,120]
[321458051,1712200293659,-1000.0,0.00055068,120]
[321458052,1712200293669,-1325.1,0.00055068,120]
[321458053,1712200293678,-500.0,0.00055068,120]
[321458054,1712200293688,-150.0,0.00055068,120]
[321458055,1712200293697,-500.0,0.00055068,120]
[321458056,1712200293706,-178.56901449,0.00055068,120]
[321458057,1712200293715,-1704.02,0.00055068,120]
[321458058,1712200293725,-843.85,0.00055068,120]
[321458059,1712200293734,-500.0,0.00055068,120]
[321458060,1712200293743,-500.0,0.00055068,120]
[321458061,1712200293752,-734.5,0.00055068,120]
[321458062,1712200293761,-500.0,0.00055068,120]
[321458063,1712200293770,-512.82239928,0.00055068,120]
[321458064,1712200293780,-1242.09,0.00055068,120]
[321458065,1712200293789,-500.0,0.00055068,120]
[321458066,1712200293798,-500.0,0.00055068,120]
[321458067,1712200293807,-500.0,0.00055068,120]
[321458068,1712200293816,-1149.11,0.00055068,120]
[321458069,1712200293825,-500.0,0.00055068,120]
[321458070,1712200293834,-499.29006358,0.00055068,120]
[321458071,1712200293844,-514.52250048,0.00055068,120]
[321458072,1712200293854,-801.39,0.00055068,120]
[321458073,1712200293863,-500.0,0.00055068,120]
[321458074,1712200293873,-636.22,0.00055068,120]
[321458075,1712200293882,-500.0,0.00055068,120]
[321458076,1712200293891,-500.0,0.00055068,120]
[321458077,1712200293901,-500.0,0.00055068,120]
[321458078,1712200293910,-500.0,0.00055068,120]
[321458079,1712200293919,-500.0,0.00055068,120]
[321458080,1712200293928,-500.0,0.00055068,120]
[321458081,1712200293937,-1372.43,0.00055068,120]
[321458082,1712200293947,-500.0,0.00055068,120]
[321458083,1712200293956,-500.0,0.00055068,120]
[321458084,1712200293965,-500.0,0.00055068,120]
[321458085,1712200293974,-500.0,0.00055068,120]
[321458086,1712200293983,-402.12217246,0.00055068,120]
[321458087,1712200293992,-500.0,0.00055068,120]
[321458088,1712200294001,-556.7,0.00055068,120]
[321458089,1712200294011,-828.45,0.00055068,120]
[321458090,1712200294020,-690.45,0.00055068,120]
[321458091,1712200294030,-1151.88,0.00055068,120]
[321458092,1712200294041,-500.0,0.00055068,2]
[321458093,1712200294052,-500.0,0.00055068,120]
[321458094,1712200294062,-515.01383805,0.00055068,120]
[321458095,1712200294071,-1261.2,0.00055068,120]
[321458096,1712200294082,-519.71199431,0.00055068,120]
[321458097,1712200294090,-1473.05,0.00055068,120]
[321458098,1712200294100,-539.26802163,0.00055068,120]
[321458099,1712200294111,-500.0,0.00055068,120]
[321458100,1712200294120,-500.0,0.00055068,120]
[321458101,1712200294129,-1240.18,0.00055068,120]
[321458102,1712200294138,-500.0,0.00055068,120]
[321458103,1712200294147,-500.0,0.00055068,120]
[321458104,1712200294156,-511.04844912,0.00055068,120]
[321458105,1712200294165,-735.68,0.00055068,120]
[321458106,1712200294174,-833.51,0.00055068,120]
[321458107,1712200294183,-700.88,0.00055068,120]
[321458108,1712200294191,-248.58290343,0.00055068,120]
[321458109,1712200294200,-1814.63,0.00055068,120]
[321458110,1712200294209,-537.21277794,0.00055068,120]
[321458111,1712200294218,-1000.0,0.00055068,120]
[321458112,1712200294227,-553.8383215,0.00055068,120]
[321458113,1712200294237,-500.0,0.00055068,120]
[321458114,1712200294246,-500.0,0.00055068,120]
[321458115,1712200294255,-500.0,0.00055068,120]
[321458116,1712200294264,-500.0,0.00055068,120]
[321458117,1712200294274,-500.0,0.00055068,120]
[321458118,1712200294283,-524.06852628,0.00055068,120]
[321458119,1712200294292,-500.0,0.00055068,120]
[321458120,1712200294301,-982.74,0.00055068,120]
[321458121,1712200294310,-500.0,0.00055068,120]
[321458122,1712200294319,-500.0,0.00055068,120]
[321458123,1712200294328,-545.1,0.00055068,120]
[321458124,1712200294338,-560.66,0.00055068,120]
[321458125,1712200294347,-500.0,0.00055068,120]
[321458126,1712200294356,-500.0,0.00055068,120]
[321458127,1712200294365,-618.23,0.00055068,120]
[321458128,1712200294374,-1375.95,0.00055068,120]
[321458129,1712200294383,-500.0,0.00055068,120]
[321458130,1712200294392,-500.0,0.00055068,120]
[321458131,1712200294401,-741.9,0.00055068,120]
[321458132,1712200294410,-500.0,0.00055068,120]
[321458133,1712200294419,-500.0,0.00055068,120]
[321458134,1712200294428,-500.0,0.00055068,120]
[321458135,1712200294437,-500.0,0.00055068,120]
[321458136,1712200294446,-500.0,0.00055068,120]
[321458137,1712200294455,-1688.43,0.00055068,120]
[321458138,1712200294464,-1668.8,0.00055068,120]
[321458139,1712200294474,-523.64291148,0.00055068,120]
[321458140,1712200294482,-500.0,0.00055068,120]
[321458141,1712200294491,-1118.0,0.00055068,120]
[321458142,1712200294500,-500.0,0.00055068,120]
[321458143,1712200294510,-500.0,0.00055068,120]
[321458144,1712200294518,-954.25,0.00055068,120]
[321458145,1712200294527,-500.0,0.00055068,120]
[321458146,1712200294536,-500.0,0.00055068,120]
[321458147,1712200294545,-500.0,0.00055068,120]
[321458148,1712200294554,-1884.27,0.00055068,120]
[321458149,1712200294563,-1030.65,0.00055068,120]
[321458150,1712200294572,-500.0,0.00055068,120]
[321458151,1712200294583,-619.94,0.00055068,120]
[321458152,1712200294592,-1616.86,0.00055068,120]
[321458153,1712200294602,-500.0,0.00055068,120]
[321458154,1712200294610,-500.0,0.00055068,120]
[321458155,1712200294619,-1251.78,0.00055068,120]
[321458156,1712200294628,-500.0,0.00055068,120]
[321458157,1712200294638,-1329.29,0.00055068,120]
[321458158,1712200294647,-500.0,0.00055068,120]
[321458159,1712200294656,-500.0,0.00055068,120]
[321458160,1712200294665,-500.0,0.00055068,120]
[321458161,1712200294674,-500.0,0.00055068,120]
[321458162,1712200294683,-896.81,0.00055068,2]
[321458163,1712200294692,-702.32,0.00055068,120]
[321458164,1712200294701,-1181.29,0.00055068,120]
[321458165,1712200294710,-1340.28,0.00055068,120]
[321458166,1712200294719,-500.0,0.00055068,120]
[321458167,1712200294728,-500.0,0.00055068,120]
[321458168,1712200294737,-966.98,0.00055068,120]
[321458169,1712200294746,-6357.1,0.00055068,120]
[321458170,1712200294755,-890.32,0.00055068,120]
[321458171,1712200294764,-500.0,0.00055068,120]
[321458172,1712200294773,-500.0,0.00055068,120]
[321458173,1712200294782,-500.0,0.00055068,120]
[321458174,1712200294791,-518.87911175,0.00055068,120]
[321458175,1712200294801,-5000.0,0.00055068,120]
[321458176,1712200294810,-500.0,0.00055068,120]
[321458177,1712200294819,-1721.46,0.00055068,120]
[321458178,1712200294828,-1386.12,0.00055068,120]
[321458179,1712200294837,-500.0,0.00055068,120]
[321458180,1712200294847,-821.48,0.00055068,120]
[321458181,1712200294857,-500.0,0.00055068,120]
[321458182,1712200294868,-500.0,0.00055068,120]
[321458183,1712200294877,-1947.85,0.00055068,120]
[321458184,1712200294886,-500.0,0.00055068,120]
[321458185,1712200294895,-500.0,0.00055068,120]
[321458186,1712200294904,-500.0,0.00055068,120]
[321458187,1712200294914,-500.0,0.00055068,120]
[321458188,1712200294923,-1400.11,0.00055068,120]
[321458189,1712200294933,-1219.29,0.00055068,120]
[321458190,1712200294943,-500.0,0.00055068,120]
[321458191,1712200294953,-500.0,0.00055068,120]
[321458192,1712200294961,-500.0,0.00055068,120]
[321458193,1712200294970,-500.0,0.00055068,120]
[321458194,1712200294979,-2098.39,0.00055068,120]
[321458195,1712200294988,-533.57239775,0.00055068,120]
[321458196,1712200294997,-1116.96,0.00055068,120]
[321458197,1712200295007,-3864.9,0.00055068,120]
[321458198,1712200295017,-303.64425916,0.00055068,120]
[321458199,1712200295026,-954.49,0.00055068,120]
[321458200,1712200295036,-500.0,0.00055068,120]
[321458201,1712200295045,-1845.84,0.00055068,120]
[321458202,1712200295055,-534.21,0.00055068,120]
[321458203,1712200295065,-522.41629106,0.00055068,120]
[321458204,1712200295074,-1293.92,0.00055068,120]
[321458205,1712200295085,-500.0,0.00055068,120]
[321458206,1712200295093,-2905.09,0.00055068,120]
[321458207,1712200295104,-500.0,0.00055068,120]
[321458208,1712200295113,-500.0,0.00055068,120]
[321458209,1712200295123,-647.32,0.00055068,120]
[321458210,1712200295132,-500.0,0.00055068,120]
[321458211,1712200295141,-500.0,0.00055068,120]
[321458212,1712200295151,-500.0,0.00055068,120]
[321458213,1712200295161,-2444.5,0.00055068,120]
[321458214,1712200295170,-500.0,0.00055068,120]
[321458215,1712200295180,-233.35836575,0.00055068,120]
[321458216,1712200295189,-500.0,0.00055068,120]
[321458217,1712200295198,-5301.8,0.00055068,120]
[321458218,1712200295209,-500.0,0.00055068,120]
[321458219,1712200295218,-500.0,0.00055068,120]
[321458220,1712200295227,-456.39899317,0.00055068,120]
[321458221,1712200295237,-500.0,0.00055068,120]
[321458222,1712200295246,-500.0,0.00055068,120]
[321458223,1712200295255,-2706.47,0.00055068,120]
[321458224,1712200295265,-534.88,0.00055068,120]
[321458225,1712200295274,-500.0,0.00055068,120]
[321458226,1712200295283,-500.0,0.00055068,120]
[321458227,1712200295292,-500.0,0.00055068,120]
[321458228,1712200295301,-596.6,0.00055068,120]
[321458229,1712200295310,-500.0,0.00055068,120]
[321458230,1712200295319,-500.0,0.00055068,120]
[321458231,1712200295329,-3864.29,0.00055068,120]
[321458232,1712200295338,-500.0,0.00055068,120]
[321458233,1712200295347,-1563.7,0.00055068,120]
[321458234,1712200295356,-500.0,0.00055068,120]
[321458235,1712200295365,-2328.79,0.00055068,120]
[321458236,1712200295375,-500.0,0.00055068,120]
[321458237,1712200295384,-500.0,0.00055068,120]
[321458238,1712200295394,-5451.86,0.00055068,120]
[321458239,1712200295403,-500.0,0.00055068,120]
[321458240,1712200295413,-638.42,0.00055068,120]
[321458241,1712200295422,-2730.07,0.00055068,120]
[321458242,1712200295431,-500.0,0.00055068,120]
[321458243,1712200295440,-500.0,0.00055068,120]
[321458244,1712200295450,-534.29,0.00055068,120]
[321458245,1712200295459,-694.4,0.00055068,120]
[321458246,1712200295468,-500.0,0.00055068,30]
[321458247,1712200295478,-523.74,0.00055068,120]
[321458248,1712200295488,-500.0,0.00055068,120]
[321458249,1712200295497,-4099.83,0.00055068,120]
[321458250,1712200295506,-500.0,0.00055068,120]
[321458251,1712200295515,-378.7451666,0.00055068,120]
[321458252,1712200295525,-846.32,0.00055068,120]
[321458253,1712200295534,-985.74,0.00055068,120]
[321458254,1712200295544,-3423.85,0.00055068,120]
[321458255,1712200295554,-500.0,0.00055068,120]
[321458256,1712200295564,-500.0,0.00055068,120]
[321458257,1712200295574,-4903.62,0.00055068,120]
[321458258,1712200295585,-2225.21,0.00055068,120]
[321458259,1712200295594,-521.5965585,0.00055068,120]
[321458260,1712200295603,-500.0,0.00055068,120]
[321458261,1712200295613,-500.0,0.00055068,120]
[321458262,1712200295622,-500.0,0.00055068,120]
[321458263,1712200295631,-769.61,0.00055068,120]
[321458264,1712200295640,-500.0,0.00055068,120]
[321458265,1712200295649,-500.0,0.00055068,120]
[321458266,1712200295659,-3165.76,0.00055068,120]
[321458267,1712200295668,-500.0,0.00055068,120]
[321458268,1712200295677,-1040.28,0.00055068,120]
[321458269,1712200295686,-500.0,0.00055068,120]
[321458270,1712200295696,-9130.88,0.00055068,120]
[321458271,1712200295705,-5027.15,0.00055068,120]
[321458272,1712200295714,-500.0,0.00055068,120]
[321458273,1712200295724,-500.0,0.00055068,120]
[321458274,1712200295733,-568.29599405,0.00055068,120]
[321458275,1712200295742,-500.0,0.00055068,120]
[321458276,1712200295751,-546.03,0.00055068,120]
[321458277,1712200295761,-2873.37,0.00055068,120]
[321458278,1712200295770,-500.0,0.00055068,120]
[321458279,1712200295779,-513.49721053,0.00055068,120]
[321458280,1712200295789,-500.0,0.00055068,120]
[321458281,1712200295798,-705.68,0.00055068,120]
[321458282,1712200295807,-500.0,0.00055068,120]
[321458283,1712200295817,-500.0,0.00055068,120]
[321458284,1712200295828,-1850.68,0.00055068,120]
[321458285,1712200295837,-782.7,0.00055068,120]
[321458286,1712200295847,-500.0,0.00055068,120]
[321458287,1712200295857,-1606.71,0.00055068,120]
[321458288,1712200295870,-500.0,0.00055068,120]
[321458289,1712200295879,-3000.0,0.00055068,120]
[321458290,1712200295888,-594.92,0.00055068,120]
[321458291,1712200295897,-4035.15,0.00055068,120]
[321458292,1712200295907,-500.0,0.00055068,120]
[321458293,1712200295917,-2413.37,0.00055068,120]
[321458294,1712200295925,-500.0,0.00055068,120]
[321458295,1712200295934,-1349.71,0.00055068,120]
[321458296,1712200295945,-500.0,0.00055068,120]
[321458297,1712200295955,-551.94,0.00055068,120]
[321458298,1712200295965,-945.36,0.00055068,120]
[321458299,1712200295974,-1282.09,0.00055068,120]
[321458300,1712200295983,-836.33,0.00055068,120]
[321458301,1712200295992,-500.0,0.00055068,120]
[321458302,1712200296002,-500.0,0.00055068,120]
[321458303,1712200296011,-227.76880495,0.00055068,120]
[321458304,1712200296020,-1406.21,0.00055068,120]
[321458305,1712200296029,-946.04,0.00055068,120]
[321458306,1712200296038,-500.0,0.00055068,120]
[321458307,1712200296048,-500.0,0.00055068,120]
[321458308,1712200296057,-641.98,0.00055068,120]
[321458309,1712200296066,-898.28,0.00055068,120]
[321458310,1712200296076,-500.0,0.00055068,120]
[321458311,1712200296087,-8609.89,0.00055068,120]
[321458312,1712200296096,-500.0,0.00055068,120]
[321458313,1712200296105,-627.13,0.00055068,120]
[321458314,1712200296115,-1151.94,0.00055068,120]
[321458315,1712200296124,-5468.41,0.00055068,120]
[321458316,1712200296134,-1889.11,0.00055068,120]
[321458317,1712200296144,-470.00375686,0.00055068,120]
[321458318,1712200296155,-53073.95,0.00055068,120]
[321458319,1712200296165,-500.0,0.00055068,120]
[321458320,1712200296175,-525.95,0.00055068,120]
[321458321,1712200296186,-6399.43,0.00055068,120]
[321458322,1712200296196,-500.0,0.00055068,120]
[321458323,1712200296207,-518.94178252,0.00055068,120]
[321458324,1712200296217,-645.37,0.00055068,120]
[321458325,1712200296227,-1683.47,0.00055068,120]
[321458326,1712200296238,-500.0,0.00055068,120]
[321458327,1712200296248,-500.0,0.00055068,120]
[321458328,1712200296259,-6691.4,0.00055068,120]
[321458329,1712200296269,-611.07,0.00055068,120]
[321458330,1712200296279,-500.0,0.00055068,120]
[321458331,1712200296290,-1927.66,0.00055068,120]
[321458332,1712200296300,-5148.74,0.00055068,120]
[321458333,1712200296311,-500.0,0.00055068,120]
[321458334,1712200296322,-1030.18,0.00055068,120]
[321458335,1712200296334,-852.93,0.00055068,120]
[321458336,1712200296345,-604.27,0.00055068,120]
[321458337,1712200296355,-8800.38,0.00055068,120]
[321458338,1712200296366,-500.0,0.00055068,120]
[321458339,1712200296377,-571.44,0.00055068,120]
[321458340,1712200296388,-1657.49,0.00055068,120]
[321458341,1712200296398,-2507.81,0.00055068,120]
[321458342,1712200296409,-614.29,0.00055068,120]
[321458343,1712200296419,-523.08526508,0.00055068,120]
[321458344,1712200296430,-825.58,0.00055068,120]
[321458345,1712200296440,-989.45,0.00055068,120]
[321458346,1712200296450,-500.0,0.00055068,120]
[321458347,1712200296461,-2396.3,0.00055068,120]
[321458348,1712200296471,-1134.76,0.00055068,120]
[321458349,1712200296482,-500.0,0.00055068,120]
[321458350,1712200296492,-582.56486592,0.00055068,120]
[321458351,1712200296502,-5513.42,0.00055068,120]
[321458352,1712200296513,-1852.1,0.00055068,7]
[321458353,1712200296523,-520.16018375,0.00055068,120]
[321458354,1712200296533,-2968.67,0.00055068,120]
[321458355,1712200296544,-2345.81,0.00055068,120]
[321458356,1712200296554,-3000.0,0.00055068,120]
[321458357,1712200296564,-500.0,0.00055068,120]
[321458358,1712200296574,-1250.54,0.00055068,120]
[321458359,1712200296585,-500.0,0.00055068,120]
[321458360,1712200296595,-2079.2,0.00055068,120]
[321458361,1712200296605,-500.0,0.00055068,120]
[321458362,1712200296615,-500.0,0.00055068,120]
[321458363,1712200296625,-500.0,0.00055068,120]
[321458364,1712200296636,-3247.17,0.00055068,120]
[321458365,1712200296646,-531.26950024,0.00055068,120]
[321458366,1712200296656,-500.0,0.00055068,120]
[321458367,1712200296667,-871.75,0.00055068,120]
[321458368,1712200296677,-902.7,0.00055068,120]
[321458369,1712200296687,-500.0,0.00055068,120]
[321458370,1712200296697,-15898.05,0.00055068,120]
[321458371,1712200296708,-3358.82,0.00055068,120]
[321458372,1712200296718,-690.28,0.00055068,120]
[321458373,1712200296729,-3349.18,0.00055068,120]
[321458374,1712200296739,-1202.73,0.00055068,120]
[321458375,1712200296751,-435.30679892,0.00055068,120]
[321458376,1712200296761,-3733.56,0.00055068,120]
[321458377,1712200296772,-500.0,0.00055068,120]
[321458378,1712200296783,-3909.57,0.00055068,120]
[321458379,1712200296794,-2507.95,0.00055068,120]
[321458380,1712200296805,-500.0,0.00055068,120]
[321458381,1712200296815,-2808.48,0.00055068,120]
[321458382,1712200296826,-500.0,0.00055068,120]
[321458383,1712200296841,-500.0,0.00055068,120]
[321458384,1712200296854,-556.58,0.00055068,120]
[321458385,1712200296866,-500.0,0.00055068,120]
[321458386,1712200296878,-500.0,0.00055068,120]
[321458387,1712200296889,-755.27,0.00055068,120]
[321458388,1712200296902,-500.0,0.00055068,120]
[321458389,1712200296913,-2313.89,0.00055068,120]
[321458390,1712200296924,-2398.13,0.00055068,120]
[321458391,1712200296941,-500.0,0.00055068,120]
[321458392,1712200296952,-542.87851895,0.00055068,120]
[321458393,1712200296963,-14500.53,0.00055068,120]
[321458394,1712200296974,-500.0,0.00055068,120]
[321458395,1712200296984,-1675.35,0.00055068,120]
[321458396,1712200296995,-500.0,0.00055068,120]
[321458397,1712200297007,-500.0,0.00055068,120]
[321458398,1712200297018,-2367.07,0.00055068,120]
[321458399,1712200297030,-2722.45,0.00055068,120]
[321458400,1712200297041,-500.0,0.00055068,120]
[321458401,1712200297056,-1253.38,0.00055068,120]
[321458402,1712200297066,-500.0,0.00055068,120]
[321458403,1712200297077,-526.42143725,0.00055068,120]
[321458404,1712200297090,-552.28,0.00055068,120]
[321458405,1712200297101,-1188.53,0.00055068,120]
[321458406,1712200297111,-1586.48,0.00055068,120]
[321458407,1712200297122,-500.0,0.00055068,120]
[321458408,1712200297133,-2639.18,0.00055068,120]
[321458409,1712200297144,-500.0,0.00055068,120]
[321458410,1712200297155,-500.0,0.00055068,120]
[321458411,1712200297165,-500.0,0.00055068,120]
[321458412,1712200297176,-500.0,0.00055068,120]
[321458413,1712200297186,-1457.76,0.00055068,120]
[321458414,1712200297195,-1660.69,0.00055068,120]
[321458415,1712200297206,-500.0,0.00055068,120]
[321458416,1712200297217,-2986.02,0.00055068,120]
[321458417,1712200297227,-518.31493768,0.00055068,120]
[321458418,1712200297238,-509.8850657,0.00055068,120]
[321458419,1712200297248,-1877.49,0.00055068,120]
[321458420,1712200297257,-771.63,0.00055068,120]
[321458421,1712200297267,-2410.62,0.00055068,120]
[321458422,1712200297277,-1159.24,0.00055068,120]
[321458423,1712200297287,-3214.36,0.00055068,120]
[321458424,1712200297297,-903.02,0.00055068,120]
[321458425,1712200297307,-500.0,0.00055068,120]
[321458426,1712200297317,-507.19911423,0.00055068,120]
[321458427,1712200297326,-924.61,0.00055068,120]
[321458428,1712200297337,-500.0,0.00055068,120]
[321458429,1712200297347,-500.0,0.00055068,120]
[321458430,1712200297357,-1007.19781613,0.00055068,14]
[321458431,1712200297367,-500.0,0.00055068,120]
[321458432,1712200297377,-500.0,0.00055068,120]
[321458433,1712200297387,-500.0,0.00055068,120]
[321458434,1712200297397,-40448.75,0.00055068,120]
[321458435,1712200297407,-1955.63,0.00055068,120]
[321458436,1712200297417,-2432.48,0.00055068,120]
[321458437,1712200297426,-500.0,0.00055068,120]
[321458438,1712200297436,-500.0,0.00055068,120]
[321458439,1712200297446,-500.0,0.00055068,120]
[321458440,1712200297456,-500.0,0.00055068,120]
[321458441,1712200297466,-1208.03,0.00055068,120]
[321458442,1712200297475,-3666.55,0.00055068,120]
[321458443,1712200297485,-500.0,0.00055068,120]
[321458444,1712200297495,-565.01,0.00055068,120]
[321458445,1712200297505,-2721.89,0.00055068,120]
[321458446,1712200297515,-513.53821802,0.00055068,120]
[321458447,1712200297525,-1251.21,0.00055068,120]
[321458448,1712200297534,-593.12,0.00055068,120]
[321458449,1712200297544,-6048.98,0.00055068,120]
[321458450,1712200297554,-1635.1,0.00055068,120]
[321458451,1712200297564,-500.0,0.00055068,120]
[321458452,1712200297575,-8828.9,0.00055068,120]
[321458453,1712200297587,-525.10145052,0.00055068,120]
[321458454,1712200297598,-500.0,0.00055068,120]
[321458455,1712200297610,-529.67609256,0.00055068,120]
[321458456,1712200297621,-1504.24,0.00055068,120]
[321458457,1712200297632,-500.0,0.00055068,120]
[321458458,1712200297644,-835.11,0.00055068,120]
[321458459,1712200297655,-18220.01,0.00055068,120]
[321458460,1712200297666,-5900.97,0.00055068,120]
[321458461,1712200297676,-500.0,0.00055068,120]
[321458462,1712200297686,-500.0,0.00055068,120]
[321458463,1712200297696,-500.0,0.00055068,120]
[321458464,1712200297706,-881.61,0.00055068,120]
[321458465,1712200297716,-521.75508601,0.00055068,120]
[321458466,1712200297726,-1186.29,0.00055068,120]
[321458467,1712200297738,-528.6,0.00055068,120]
[321458468,1712200297749,-22689.12,0.00055068,120]
[321458469,1712200297759,-500.0,0.00055068,120]
[321458470,1712200297770,-500.0,0.00055068,120]
[321458471,1712200297781,-500.0,0.00055068,120]
[321458472,1712200297790,-500.0,0.00055068,120]
[321458473,1712200297801,-3620.99,0.00055068,120]
[321458474,1712200297812,-514.83697745,0.00055068,120]
[321458475,1712200297823,-2635.7,0.00055068,120]
[321458476,1712200297833,-541.58227598,0.00055068,120]
[321458477,1712200297844,-500.0,0.00055068,120]
[321458478,1712200297855,-500.0,0.00055068,120]
[321458479,1712200297869,-500.0,0.00055068,120]
[321458480,1712200297879,-650.57,0.00055068,120]
[321458481,1712200297889,-1339.71,0.00055068,120]
[321458482,1712200297899,-500.0,0.00055068,120]
[321458483,1712200297911,-500.0,0.00055068,120]
[321458484,1712200297922,-500.0,0.00055068,120]
[321458485,1712200297933,-4460.99,0.00055068,120]
[321458486,1712200297945,-500.0,0.00055068,120]
[321458487,1712200297956,-1711.13,0.00055068,7]
[321458488,1712200297967,-2237.15,0.00055068,21]
[321458489,1712200297978,-1691.17,0.00055068,120]
[321458490,1712200297989,-500.0,0.00055068,120]
[321458491,1712200297999,-500.0,0.00055068,120]
[321458492,1712200298009,-658.56,0.00055068,120]
[321458493,1712200298019,-537.3856293,0.00055068,120]
[321458494,1712200298030,-7361.59,0.00055068,120]
[321458495,1712200298040,-544.77764903,0.00055068,120]
[321458496,1712200298050,-1097.27,0.00055068,120]
[321458497,1712200298062,-4641.79,0.00055068,120]
[321458498,1712200298073,-500.0,0.00055068,120]
[321458499,1712200298085,-500.0,0.00055068,120]
[321458500,1712200298096,-500.0,0.00055068,120]
[321458501,1712200298106,-500.0,0.00055068,120]
[321458502,1712200298117,-5803.21,0.00055068,120]
[321458503,1712200298128,-4333.28,0.00055068,120]
[321458504,1712200298138,-5008.64,0.00055068,120]
[321458505,1712200298149,-1131.15,0.00055068,120]
[321458506,1712200298160,-812.33,0.00055068,120]
[321458507,1712200298171,-500.0,0.00055068,120]
[321458508,1712200298181,-15539.97,0.00055068,120]
[321458509,1712200298191,-2073.37,0.00055068,120]
[321458510,1712200298202,-500.0,0.00055068,120]
[321458511,1712200298212,-1653.07,0.00055068,120]
[321458512,1712200298224,-637.31329503,0.00055068,120]
[321458513,1712200298233,-786.18,0.00055068,120]
[321458514,1712200298243,-500.0,0.00055068,120]
[321458515,1712200298253,-500.0,0.00055068,120]
[321458516,1712200298262,-500.0,0.00055068,120]
[321458517,1712200298272,-500.0,0.00055068,120]
[321458518,1712200298282,-650.96869793,0.00055068,120]
[321458519,1712200298293,-3101.5,0.00055068,120]
[321458520,1712200298303,-500.0,0.00055068,120]
[321458521,1712200298314,-4002.83,0.00055068,120]
[321458522,1712200298325,-628.33645549,0.00055068,120]
[321458523,1712200298338,-461.84453876,0.00055068,120]
[321458524,1712200298348,-500.0,0.00055068,120]
[321458525,1712200298360,-1000.0,0.00055068,120]
[321458526,1712200298372,-780.89,0.00055068,120]
[321458527,1712200298383,-1099.33,0.00055068,120]
[321458528,1712200298394,-1810.31,0.00055068,120]
[321458529,1712200298405,-500.0,0.00055068,120]
[321458530,1712200298416,-2719.84,0.00055068,120]
[321458531,1712200298427,-992.63,0.00055068,120]
[321458532,1712200298438,-8315.86,0.00055068,30]
[321458533,1712200298449,-524.26158319,0.00055068,120]